bitfinex-derivatives/quotes_SOLF0:USTF0_20250301
["timestamp","ask_amount","ask_price","bid_price","bid_amount"]
[1740813072294,5.5899,143.17,143.12,5.5914]
[1740813072490,5.5904,143.16,143.12,5.5914]
[1740813072699,5.63672324,143.16,143.13,0.04450616]
[1740813073697,82.35524865,143.16,143.13,0.04450616]
[1740813074096,76.76484865,143.16,143.13,0.04450616]
[1740813075399,28.9546161,143.16,143.13,0.04450616]
[1740813076701,28.9546161,143.16,143.14,5.591]
[1740813077200,105.67314151,143.16,143.14,5.591]
[1740813079903,105.67314151,143.16,143.15,5.5906]
[1740813080602,0.04632324,143.16,143.15,5.5906]
[1740813090110,125.71019673,143.22,143.18,5.5893]
[1740813091209,0.04891892,143.21,143.19,0.0468196]
[1740813092198,0.04891892,143.21,143.19,5.6356196]
[1740813094610,0.04891892,143.21,143.19,0.0468196]
[1740813094805,0.04891892,143.21,143.2,5.5887]
[1740813096412,1.892e-05,143.21,143.2,5.5887]
[1740813096800,28.90831178,143.21,143.2,5.5887]
[1740813097908,28.90831178,143.21,143.19,0.0468196]
[1740813099104,1.892e-05,143.21,143.19,5.6358196]
[1740813100815,1.892e-05,143.21,143.2,5.5887]
[1740813101411,1.892e-05,143.21,143.19,5.6357196]
[1740813101614,1.892e-05,143.21,143.19,0.0468196]
[1740813102412,5.58861892,143.21,143.19,0.0468196]
[1740813103919,20.08337846,143.2,143.19,0.0468196]
[1740813106622,1.892e-05,143.21,143.19,0.0468196]
[1740813108024,5.58831892,143.21,143.19,0.0468196]
[1740813108926,34.49661178,143.21,143.19,0.0468196]
[1740813109217,28.90831178,143.21,143.19,0.0468196]
[1740813109812,34.49661178,143.21,143.19,0.0468196]
[1740813110222,28.90831178,143.21,143.19,0.0468196]
[1740813110811,34.49681178,143.21,143.19,0.0468196]
[1740813111022,28.90831178,143.21,143.19,0.0022196]
[1740813111223,32.40831178,143.21,143.19,0.0022196]
[1740813111515,96.63057635,143.2,143.19,0.0022196]
[1740813111722,102.21927635,143.2,143.19,0.0022196]
[1740813111917,105.71927635,143.2,143.19,0.0022196]
[1740813112321,105.71927635,143.2,143.13,223.6]
[1740813112517,96.63057635,143.2,143.13,223.6]
[1740813113111,96.63057635,143.2,143.14,1.9215]
[1740813113312,96.63057635,143.2,143.15,1.7871]
[1740813113514,0.05343849,143.18,143.17,5.5898]
[1740813117627,29.0521161,143.18,143.17,5.5898]
[1740813121432,29.0521161,143.18,143.16,0.05307988]
[1740813121824,9.72639051,143.18,143.16,0.05307988]
[1740813123935,9.72639051,143.18,143.17,5.5898]
[1740813124236,97.2952964,143.18,143.17,5.5898]
[1740813125830,48.98708208,143.18,143.17,5.5898]
[1740813126033,29.07503114,143.18,143.17,5.5898]
[1740813129053,0.05343849,143.18,143.17,5.5898]
[1740813132248,0.05343849,143.18,143.16,5.64307988]
[1740813132440,0.05343849,143.18,143.16,0.05307988]
[1740813134249,0.05343849,143.18,143.16,5.64317988]
[1740813134554,97.24185791,143.17,143.16,5.64317988]
[1740813137259,97.24185791,143.17,143.16,0.05307988]
[1740813137753,38.70585608,143.17,143.16,0.05307988]
[1740813138157,44.29565608,143.17,143.16,0.05307988]
[1740813138853,38.70585608,143.17,143.12,5.5917]
[1740813139761,44.29595608,143.17,143.12,5.5917]
[1740813139959,0.04643996,143.16,143.13,0.05019751]
[1740813140459,5.591,143.14,143.13,0.05019751]
[1740813140662,10.06,143.14,143.04,1.9477]
[1740813140863,38.70585608,143.13,143.04,1.9477]
[1740813141357,38.70585608,143.13,143.09,5.5927]
[1740813141558,38.70585608,143.13,143.04,1.9477]
[1740813141862,0.04414397,143.12,143.04,1.9477]
[1740813143252,38.70585608,143.11,143.04,1.9477]
[1740813143863,38.70585608,143.11,143.1,5.5925]
[1740813145560,0.04414397,143.12,143.11,5.5922]
[1740813146168,0.04414397,143.12,143.04,1.9477]
[1740813146666,0.04414397,143.12,143.1,5.5925]
[1740813147167,0.04414397,143.12,143.11,5.5922]
[1740813149471,0.04414397,143.12,143.04,1.9477]
[1740813149664,0.04414397,143.12,143.1,5.5924]
[1740813149864,0.04414397,143.12,143.04,1.9477]
[1740813150270,0.04414397,143.12,143.09,5.5929]
[1740813150965,0.04414397,143.12,143.04,1.9477]
[1740813151171,0.04414397,143.12,143.1,5.5925]
[1740813151975,0.04414397,143.12,143.04,1.9477]
[1740813152771,0.04414397,143.12,143.1,5.5923]
[1740813153376,0.04414397,143.12,143.11,5.5922]
[1740813155171,0.04414397,143.12,143.1,5.5924]
[1740813155371,0.04414397,143.12,143.04,1.9477]
[1740813155767,0.04414397,143.12,143.1,5.5923]
[1740813156170,0.04414397,143.12,143.04,1.9477]
[1740813157378,0.04414397,143.12,143.08,5.5933]
[1740813158078,0.04414397,143.12,143.04,1.9477]
[1740813158275,0.04414397,143.12,143.07,5.5936]
[1740813158978,5.63594397,143.12,143.06,229.174]
[1740813159880,0.04414397,143.12,143.06,223.58]
[1740813160074,10.06,143.11,143.03,3.7798]
[1740813160275,10.06,143.11,143.0,55.42452561]
[1740813160481,0.04942921,143.08,143.0,55.42452561]
[1740813161484,5.5938,143.07,143.02,5.5956]
[1740813161872,5.5938,143.07,143.0,55.42452561]
[1740813162081,5.5936,143.08,143.01,5.5958]
[1740813162278,0.05172322,143.05,143.01,5.5958]
[1740813162482,0.05172322,143.05,143.0,55.42452561]
[1740813162683,0.05172322,143.05,143.0,61.02082561]
[1740813163278,0.05172322,143.05,143.0,5.5963]
[1740813164284,5.64632322,143.05,143.0,5.5963]
[1740813164686,5.64632322,143.05,142.99,5.7225]
[1740813164986,5.64632322,143.05,142.99,11.3193]
[1740813165384,5.64632322,143.05,143.0,5.5965]
[1740813165986,29.59787399,143.05,143.0,5.5965]
[1740813168387,0.05172322,143.05,143.0,5.5965]
[1740813169277,0.05172322,143.05,142.99,5.7225]
[1740813169479,0.05172322,143.05,143.01,5.596]
[1740813172392,0.05172322,143.05,142.99,5.7225]
[1740813172689,0.05172322,143.05,143.02,5.5957]
[1740813173291,19.84811691,143.05,143.02,5.5957]
[1740813175691,19.84811691,143.05,143.03,5.5951]
[1740813175896,19.84811691,143.05,142.99,5.7225]
[1740813176397,19.84811691,143.05,143.02,5.5955]
[1740813177798,35.11918093,143.05,143.02,5.5955]
[1740813178586,35.11918093,143.05,142.99,5.7225]
[1740813179398,35.11918093,143.05,143.02,5.5954]
[1740813180598,35.11918093,143.05,143.01,5.5959]
[1740813180797,44.3521793,143.05,143.01,5.5959]
[1740813180993,38.7575793,143.05,142.99,5.7225]
[1740813181696,38.7575793,143.05,142.99,3.7446]
[1740813181899,38.7575793,143.05,142.92,15.6743]
[1740813182098,38.70585608,143.05,142.92,15.6743]
[1740813182300,0.05356736,143.0,142.98,5.597]
[1740813182599,5.5959,143.02,142.98,5.597]
[1740813182795,0.04548896,143.0,142.92,15.6743]
[1740813183302,44.30095608,143.04,142.92,15.6743]
[1740813184602,0.04808163,142.99,142.98,5.5973]
[1740813184789,44.30095608,143.04,142.97,0.04587298]
[1740813185303,38.70585608,143.04,142.97,10.12587298]
[1740813185497,38.70585608,143.04,142.98,1.872]
[1740813185905,0.05101624,143.02,142.98,1.872]
[1740813186098,38.70585608,143.04,142.98,1.872]
[1740813186906,38.70585608,143.04,143.0,5.5963]
[1740813187297,0.04810748,143.03,143.01,0.05045318]
[1740813188606,0.04810748,143.03,143.01,5.64645318]
[1740813189702,0.04810748,143.03,143.01,0.05045318]
[1740813195801,29.02939206,143.02,143.01,0.05045318]
[1740813196010,29.02939206,143.02,143.01,5.64655318]
[1740813198910,38.75698421,143.03,143.01,5.64655318]
[1740813199305,38.75698421,143.03,143.02,5.5957]
[1740813215117,0.04810748,143.03,143.02,5.5957]
[1740813216110,0.04810748,143.03,143.01,0.05045318]
[1740813216111,18.42387673,143.05,143.04,5.5949]
[1740813216321,7.673e-05,143.05,143.04,5.5949]
[1740813216918,91.1685407,143.06,143.05,5.5945]
[1740813218219,15.22133391,143.06,143.05,5.5945]
[1740813219220,0.0440278,143.07,143.06,5.5941]
[1740813220313,2.78e-05,143.07,143.06,5.5941]
[1740813227018,2.78e-05,143.07,143.04,0.04984415]
[1740813228116,2.78e-05,143.07,143.04,5.64474415]
[1740813229224,2.78e-05,143.07,143.04,0.04984415]
[1740813229924,2.78e-05,143.07,143.06,5.5941]
[1740813239831,2.78e-05,143.07,143.04,0.04984415]
[1740813240037,2.78e-05,143.07,143.05,5.5943]
[1740813240436,2.78e-05,143.07,143.06,5.5941]
[1740813264361,2.78e-05,143.07,143.04,10.10984415]
[1740813264861,2.78e-05,143.07,143.04,15.70454415]
[1740813265165,2.78e-05,143.07,143.04,10.10984415]
[1740813265468,2.78e-05,143.07,143.05,5.5943]
[1740813265661,2.78e-05,143.07,143.04,10.10984415]
[1740813266164,2.78e-05,143.07,143.06,5.5941]
[1740813267965,2.78e-05,143.07,143.06,2.6257]
[1740813268167,2.78e-05,143.07,143.05,5.5944]
[1740813268467,2.78e-05,143.07,142.95,199.843]
[1740813268672,5.5941278,143.07,142.97,10.6583409]
[1740813269065,2.78e-05,143.07,142.97,0.5983409]
[1740813269261,5.5941,143.06,143.02,5.5955]
[1740813269462,1.909,143.05,143.02,5.5955]
[1740813269661,1.909,143.05,143.02,2.67594565]
[1740813269968,1.909,143.05,143.04,5.5949]
[1740813273974,1.909,143.05,143.03,5.64658954]
[1740813275171,1.909,143.05,143.03,0.05138954]
[1740813275772,1.909,143.05,143.03,5.64668954]
[1740813278667,1.909,143.05,143.03,0.05138954]
[1740813278869,1.909,143.05,143.04,5.5949]
[1740813279674,0.04402842,143.06,143.05,5.5945]
[1740813281978,0.04402842,143.06,143.03,0.05138954]
[1740813283581,0.04402842,143.06,143.03,5.64668954]
[1740813284579,0.04402842,143.06,143.04,5.5949]
[1740813291383,0.04402842,143.06,143.03,5.64658954]
[1740813295075,0.04402842,143.06,143.04,5.5949]
[1740813304088,0.04402842,143.06,143.05,5.5945]
[1740813304292,0.04402842,143.06,143.03,0.05138954]
[1740813304701,0.04402842,143.06,143.04,5.5947]
[1740813307301,0.04402842,143.06,143.05,5.5945]
[1740813310215,38.67342151,143.09,143.03,0.05138954]
[1740813310401,38.67342151,143.09,143.08,5.5934]
[1740813310913,38.67342151,143.09,143.07,5.5936]
[1740813311512,38.7239428,143.09,143.07,5.64583628]
[1740813312414,0.05052129,143.09,143.07,5.64583628]
[1740813312912,0.05052129,143.09,143.08,5.5934]
[1740813313109,56.53673437,143.13,143.07,0.05223628]
[1740813313506,56.53673437,143.13,143.07,10.11223628]
[1740813314308,0.05092279,143.11,143.07,10.11223628]
[1740813314908,0.05092279,143.11,143.1,5.5924]
[1740813317716,2.279e-05,143.11,143.1,5.5924]
[1740813318019,38.67342151,143.16,143.14,5.591]
[1740813318318,38.67342151,143.16,143.08,48.09472845]
[1740813318520,38.67342151,143.16,143.13,5.5911]
[1740813319218,38.72422444,143.16,143.13,0.04888519]
[1740813319417,0.05080293,143.16,143.13,0.04888519]
[1740813321213,5.591,143.14,143.13,0.04888519]
[1740813321419,5.591,143.14,142.98,239.61773179]
[1740813321420,10.06,143.14,143.01,1.9528]
[1740813321718,1.7916,143.13,143.02,5.5954]
[1740813321917,5.5936,143.08,143.01,1.9528]
[1740813322118,1.7916,143.13,143.01,1.9528]
[1740813322422,5.5937,143.08,143.01,1.9528]
[1740813322717,5.5937,143.08,143.01,7.5488]
[1740813322718,5.63885745,143.08,143.01,7.5488]
[1740813322925,5.63885745,143.08,143.03,0.04690354]
[1740813326526,0.04515745,143.08,143.03,0.04690354]
[1740813327427,0.04515745,143.08,143.04,5.5948]
[1740813327725,0.04515745,143.08,143.03,0.04690354]
[1740813329427,5.63875745,143.08,143.03,0.04690354]
[1740813329628,1.8956,143.07,143.03,0.04690354]
[1740813331330,1.8956,143.07,143.03,5.64220354]
[1740813334330,1.8956,143.07,143.04,5.5949]
[1740813335030,1.8956,143.07,143.03,0.04690354]
[1740813335031,0.04515745,143.08,143.03,0.04690354]
[1740813336028,0.04515745,143.08,143.05,5.5943]
[1740813336831,0.04515745,143.08,143.06,5.5941]
[1740813337635,0.04515745,143.08,143.03,0.04690354]
[1740813337836,0.04515745,143.08,143.07,5.5937]
[1740813340735,5.745e-05,143.08,143.07,5.5937]
[1740813350044,5.745e-05,143.08,143.07,9.0937]
[1740813350636,5.745e-05,143.08,143.07,5.5937]
[1740813351037,5.745e-05,143.08,143.07,9.0937]
[1740813363048,1.9614,143.2,143.18,5.5892]
[1740813363354,38.46154045,143.24,143.15,10.04]
[1740813363554,38.46154045,143.24,143.2,5.5884]
[1740813363756,38.46154045,143.24,143.15,10.04]
[1740813363951,1.9104,143.23,143.15,10.04]
[1740813364152,0.05132211,143.21,143.18,5.633597]
[1740813364754,1.91092211,143.21,143.18,5.633597]
[1740813365557,1.91092211,143.21,143.13,5.5913]
[1740813365957,1.8596,143.21,143.13,5.5913]
[1740813366456,5.5892,143.19,143.13,5.5913]
[1740813366656,2.01552704,143.18,143.16,0.04520824]
[1740813366858,2.01552704,143.18,143.13,5.5913]
[1740813367061,2.01552704,143.18,143.12,223.62]
[1740813367253,2.01552704,143.18,143.14,5.591]
[1740813367959,2.01552704,143.18,143.15,0.04842181]
[1740813368554,2.01552704,143.18,143.15,5.63902181]
[1740813375361,5.5901,143.17,143.13,5.5912]
[1740813375566,1.8743,143.17,143.12,223.62]
[1740813375771,1.9557,143.16,143.09,10.04]
[1740813375959,5.5909,143.15,143.11,5.5919]
[1740813376559,0.04891718,143.14,143.12,0.04532812]
[1740813376761,0.04891718,143.14,143.11,5.5919]
[1740813377958,0.04891718,143.14,143.11,5.63674123]
[1740813381166,5.64001718,143.14,143.11,5.63674123]
[1740813382361,0.04891718,143.14,143.13,5.5914]
[1740813385168,0.04891718,143.14,143.12,5.5916]
[1740813385363,0.04891718,143.14,143.11,0.04484123]
[1740813386056,5.64011718,143.14,143.11,0.04484123]
[1740813386461,0.04891718,143.14,143.07,11.4379171]
[1740813386657,5.5922,143.11,143.05,316.39526961]
[1740813387166,5.5922,143.11,143.07,5.5936]
[1740813387368,5.592,143.12,143.05,306.35526961]
[1740813387667,0.05204312,143.1,143.07,5.63894936]
[1740813387867,0.05204312,143.1,143.07,0.04544936]
[1740813388964,1.98294312,143.1,143.07,0.04544936]
[1740813389968,1.98294312,143.1,143.06,5.594]
[1740813390868,1.98294312,143.1,143.05,306.35526961]
[1740813391067,1.98294312,143.1,143.05,88.36976961]
[1740813391462,1.98294312,143.1,143.05,5.5945]
[1740813392369,7.57574312,143.1,143.05,5.5945]
[1740813392565,1.98294312,143.1,143.04,5.5948]
[1740813392773,1.9309,143.1,143.04,5.5948]
[1740813392962,0.04955297,143.08,143.04,5.5948]
[1740813393163,1.99715297,143.08,143.05,5.5945]
[1740813394380,12.03715297,143.08,142.99,0.59822037]
[1740813394870,0.04899415,143.05,142.93,10.04]
[1740813395269,5.5953,143.03,142.98,5.5969]
[1740813395574,1.9121,143.02,142.92,10.04]
[1740813395874,1.9121,143.02,143.0,5.5963]
[1740813396174,0.045861,142.98,142.93,10.04]
[1740813396466,0.05316652,142.97,142.93,10.04]
[1740813396668,0.05316652,142.97,142.96,5.598]
[1740813405077,0.05316652,142.97,142.95,5.5984]
[1740813405379,0.05316652,142.97,142.91,1.9118]
[1740813405582,0.05316652,142.97,142.94,5.5988]
[1740813406775,0.05316652,142.97,142.9,223.68]
[1740813407178,0.05316652,142.97,142.96,5.598]
[1740813411575,0.05316652,142.97,142.95,5.5983]
[1740813412684,0.05316652,142.97,142.94,5.5987]
[1740813415280,0.05316652,142.97,142.92,5.5994]
[1740813415486,10.11316652,142.97,142.92,5.5994]
[1740813415886,5.5981,142.96,142.92,5.5994]
[1740813416591,10.11316652,142.97,142.87,15.6809]
[1740813416790,10.06,142.97,142.87,3.7046]
[1740813416993,0.04806857,142.93,142.87,1.7958]
[1740813417194,0.04806857,142.93,142.88,5.601]
[1740813417394,0.04806857,142.93,142.84,1.8217]
[1740813417693,5.5997,142.92,142.87,5.6015]
[1740813417893,0.04969289,142.9,142.84,1.8217]
[1740813418693,0.04969289,142.9,142.88,5.6009]
[1740813418992,0.04969289,142.9,142.84,1.8217]
[1740813422996,0.04969289,142.9,142.89,5.6008]
[1740813429809,0.04969289,142.9,142.87,5.6015]
[1740813430104,0.04969289,142.9,142.84,1.8217]
[1740813430309,5.6008,142.89,142.84,1.8217]
[1740813430710,10.10969289,142.9,142.79,10.06]
[1740813431007,1.9635,142.89,142.79,10.06]
[1740813431201,0.05380478,142.86,142.79,10.06]
[1740813431402,0.05380478,142.86,142.78,10.06]
[1740813431602,5.6013,142.88,142.78,10.06]
[1740813431798,5.6013,142.88,142.84,5.6025]
[1740813432007,0.04441058,142.84,142.78,10.06]
[1740813432305,1.9635,142.89,142.78,10.06]
[1740813432507,9.992e-05,142.82,142.78,10.06]
[1740813432809,1.9635,142.89,142.86,5.6017]
[1740813433304,1.9635,142.89,142.78,10.06]
[1740813433509,1.9635,142.89,142.87,5.6015]
[1740813433708,1.9635,142.89,142.82,0.04797884]
[1740813433909,0.04913194,142.89,142.88,5.6012]
[1740813436205,9.61538511,142.92,142.87,0.04641228]
[1740813436407,9.61538511,142.92,142.91,5.6]
[1740813437310,38.90615534,142.93,142.91,5.6]
[1740813437515,0.05134168,142.93,142.91,5.6]
[1740813438310,0.05134168,142.93,142.92,5.5996]
[1740813440015,0.05134168,142.93,142.9,5.65121485]
[1740813440914,0.05134168,142.93,142.91,5.6]
[1740813448116,0.05134168,142.93,142.9,0.05111485]
[1740813448414,0.05134168,142.93,142.9,5.65131485]
[1740813450217,0.05134168,142.93,142.9,0.05111485]
[1740813450218,5.6,142.91,142.9,0.05111485]
[1740813452418,0.05134168,142.93,142.9,0.05111485]
[1740813452615,0.05134168,142.93,142.9,5.65151485]
[1740813454216,17.83923668,142.91,142.9,5.65151485]
[1740813456221,27.50596347,142.93,142.9,5.65151485]
[1740813459628,17.89057836,142.93,142.9,5.65151485]
[1740813461426,23.48987836,142.93,142.9,0.05111485]
[1740813461928,5.65064168,142.93,142.9,0.05111485]
[1740813463927,5.65064168,142.93,142.9,5.65141485]
[1740813464629,0.05134168,142.93,142.9,0.05111485]
[1740813464829,9.66672679,142.93,142.92,5.5996]
[1740813465222,6.69542679,142.93,142.92,5.5996]
[1740813468229,0.04995863,142.94,142.93,5.5992]
[1740813469534,0.04995863,142.94,142.92,5.5995]
[1740813469727,0.04995863,142.94,142.91,3.8758]
[1740813470834,0.04995863,142.94,142.93,5.5992]
[1740813477339,0.04995863,142.94,142.91,5.6849]
[1740813477340,0.04995863,142.94,142.91,1.9085]
[1740813477543,0.04995863,142.94,142.9,0.05111485]
[1740813478038,5.5993,142.93,142.9,0.05111485]
[1740813478434,5.64895863,142.94,142.9,0.05111485]
[1740813478638,0.04995863,142.94,142.9,0.05111485]
[1740813479238,0.04995863,142.94,142.92,5.5994]
[1740813479437,0.04995863,142.94,142.9,0.05111485]
[1740813479644,5.64895863,142.94,142.9,5.65141485]
[1740813480139,0.04995863,142.94,142.92,5.5996]
[1740813480543,0.04995863,142.94,142.9,0.05111485]
[1740813481042,0.04995863,142.94,142.93,5.5992]
[1740813482546,0.04995863,142.94,142.92,5.5995]
[1740813483143,0.04995863,142.94,142.93,5.5992]
[1740813497551,28.84615534,143.01,142.97,5.5974]
[1740813498251,34.44225534,143.01,142.97,5.5974]
[1740813498843,0.04676511,143.0,142.98,0.05177916]
[1740813504655,0.04676511,143.0,142.99,5.5969]
[1740813508253,6.511e-05,143.0,142.99,5.5969]
[1740813508454,6.511e-05,143.0,142.99,15.6369]
[1740813509864,6.511e-05,143.0,142.99,19.1369]
[1740813510159,6.511e-05,143.0,142.99,15.6369]
[1740813511260,6.511e-05,143.0,142.98,0.05177916]
[1740813511462,6.511e-05,143.0,142.98,5.64897916]
[1740813511657,6.511e-05,143.0,142.98,0.05177916]
[1740813512560,6.511e-05,143.0,142.98,5.64897916]
[1740813515666,6.511e-05,143.0,142.99,5.5969]
[1740813552089,6.511e-05,143.0,142.98,5.64887916]
[1740813552288,6.511e-05,143.0,142.98,0.05177916]
[1740813552895,6.511e-05,143.0,142.95,10.04]
[1740813553092,6.511e-05,143.0,142.96,5.5978]
[1740813553996,6.511e-05,143.0,142.97,0.04431879]
[1740813554489,6.511e-05,143.0,142.97,5.64181879]
[1740813554895,6.511e-05,143.0,142.97,0.04431879]
[1740813555092,6.511e-05,143.0,142.98,5.5973]
[1740813555396,6.511e-05,143.0,142.97,0.04431879]
[1740813555700,6.511e-05,143.0,142.97,5.64171879]
[1740813556193,6.511e-05,143.0,142.96,5.5979]
[1740813556488,6.511e-05,143.0,142.92,46.24836426]
[1740813556895,6.511e-05,143.0,142.95,5.5981]
[1740813557396,6.511e-05,143.0,142.96,0.05027461]
[1740813557593,6.511e-05,143.0,142.92,46.24836426]
[1740813557797,6.511e-05,143.0,142.93,5.5992]
[1740813557996,6.511e-05,143.0,142.93,2.6294]
[1740813558295,5.5979,142.97,142.93,2.6294]
[1740813558491,3.6506,142.96,142.92,46.24836426]
[1740813558694,3.70101128,142.96,142.94,0.0450229]
[1740813558895,3.70101128,142.96,142.92,46.24836426]
[1740813559091,9.29911128,142.96,142.92,5.5996]
[1740813559600,3.70101128,142.96,142.94,5.5988]
[1740813560100,0.05041128,142.96,142.94,0.05015754]
[1740813560303,0.05041128,142.96,142.95,5.5984]
[1740813561899,0.05041128,142.96,142.94,0.05015754]
[1740813562100,0.05041128,142.96,142.91,0.59861435]
[1740813563797,5.64851128,142.96,142.92,5.5995]
[1740813563993,1.8388,142.95,142.92,5.5995]
[1740813565394,1.8388,142.95,142.91,5.5999]
[1740813565600,1.8216,142.94,142.91,5.5999]
[1740813568002,3.6799,142.94,142.91,5.5999]
[1740813568300,5.5993,142.93,142.89,5.6004]
[1740813568492,3.6799,142.94,142.83,233.92]
[1740813568694,0.04975114,142.92,142.83,233.92]
[1740813568890,5.6,142.91,142.88,5.6011]
[1740813569095,0.04741904,142.89,142.88,5.6011]
[1740813569298,0.04741904,142.89,142.83,223.88]
[1740813570403,0.04741904,142.89,142.87,5.6014]
[1740813571405,0.04741904,142.89,142.88,5.6012]
[1740813572703,1.904e-05,142.89,142.88,5.6012]
[1740813582909,1.904e-05,142.89,142.87,5.64770293]
[1740813584616,1.904e-05,142.89,142.88,5.6012]
[1740813588408,1.904e-05,142.89,142.88,15.6412]
[1740813588809,1.904e-05,142.89,142.88,17.4741]
[1740813589008,1.904e-05,142.89,142.88,19.4247]
[1740813593021,1.904e-05,142.89,142.88,21.2586]
[1740813599041,1.904e-05,142.89,142.88,28.56440826]
[1740813599537,1.904e-05,142.89,142.88,21.2586]
[1740813599942,1.904e-05,142.89,142.88,28.56440826]
[1740813601738,1.904e-05,142.89,142.88,5.6012]
[1740813606537,1.904e-05,142.89,142.87,5.64760293]
[1740813607141,1.904e-05,142.89,142.87,0.04620293]
[1740813607846,1.904e-05,142.89,142.87,5.64740293]
[1740813608538,1.904e-05,142.89,142.88,5.6012]
[1740813620151,1.904e-05,142.89,142.87,5.64750293]
[1740813620343,1.904e-05,142.89,142.87,0.04620293]
[1740813621138,1.904e-05,142.89,142.83,10.04]
[1740813621451,1.904e-05,142.89,142.81,234.02]
[1740813621951,1.904e-05,142.89,142.81,223.98]
[1740813622658,5.6015,142.88,142.83,5.6029]
[1740813622953,1.9815,142.87,142.83,5.6029]
[1740813623141,1.9815,142.87,142.84,5.6026]
[1740813623544,2.03203216,142.87,142.81,223.98]
[1740813624745,2.03203216,142.87,142.84,5.6026]
[1740813625957,2.03203216,142.87,142.81,223.98]
[1740813627560,2.03203216,142.87,142.86,5.602]
[1740813630260,0.05053216,142.87,142.86,5.602]
[1740813633153,3.216e-05,142.87,142.86,5.602]
[1740813633662,3.216e-05,142.87,142.86,15.642]
[1740813634160,3.216e-05,142.87,142.86,5.602]
[1740813635757,3.216e-05,142.87,142.85,0.04667737]
[1740813637060,3.216e-05,142.87,142.85,5.64897737]
[1740813637258,3.216e-05,142.87,142.85,0.04667737]
[1740813637664,3.216e-05,142.87,142.85,5.64897737]
[1740813637865,3.216e-05,142.87,142.85,0.04667737]
[1740813638965,3.216e-05,142.87,142.85,5.64897737]
[1740813639361,3.216e-05,142.87,142.85,0.04667737]
[1740813640162,3.216e-05,142.87,142.85,5.64877737]
[1740813641270,3.216e-05,142.87,142.86,5.602]
[1740813649876,3.216e-05,142.87,142.86,9.102]
[1740813650077,3.216e-05,142.87,142.86,14.7479]
[1740813658282,3.216e-05,142.87,142.86,16.147872]
[1740813664177,3.216e-05,142.87,142.86,17.4337997]
[1740813667587,3.216e-05,142.87,142.86,16.147872]
[1740813667787,3.216e-05,142.87,142.86,17.43368189]
[1740813668389,3.216e-05,142.87,142.86,16.147872]
[1740813668589,3.216e-05,142.87,142.86,17.43368121]
[1740813668777,3.216e-05,142.87,142.86,16.147872]
[1740813669189,3.216e-05,142.87,142.86,17.43378035]
[1740813669687,3.216e-05,142.87,142.86,17.43378207]
[1740813669991,5.5689,143.02,143.01,5.5961]
[1740813671483,5.5689,143.02,143.0,0.04594212]
[1740813671690,5.5689,143.02,143.0,5.64224212]
[1740813672991,5.5689,143.02,143.01,5.5961]
[1740813679392,5.5689,143.02,143.0,5.64234212]
[1740813679895,5.5689,143.02,143.0,0.04594212]
[1740813680900,5.5689,143.02,143.0,5.64204212]
[1740813682093,5.5689,143.02,143.0,0.04594212]
[1740813682299,5.5689,143.02,143.01,5.5961]
[1740813683199,1.8408,143.02,143.01,5.5961]
[1740813683600,0.05041746,143.03,143.02,5.5957]
[1740813686090,0.05041746,143.03,143.01,5.5958]
[1740813686290,0.05041746,143.03,143.0,0.04594212]
[1740813686902,0.05041746,143.03,143.01,5.5959]
[1740813687294,0.05041746,143.03,143.0,0.04594212]
[1740813687496,0.05041746,143.03,143.02,5.5957]
[1740813689305,0.05041746,143.03,143.01,5.5959]
[1740813689902,0.05041746,143.03,143.0,5.64234212]
[1740813691400,0.05041746,143.03,143.0,0.04594212]
[1740813692910,0.05041746,143.03,143.02,5.5957]
[1740813693909,0.05041746,143.03,143.0,0.04594212]
[1740813694708,0.05041746,143.03,143.02,5.5957]
[1740813703112,0.05041746,143.03,143.01,5.596]
[1740813703518,0.05041746,143.03,143.0,0.04594212]
[1740813703718,0.05041746,143.03,143.0,2.67244212]
[1740813704106,0.05041746,143.03,142.96,223.88]
[1740813704311,0.05041746,143.03,143.01,5.596]
[1740813705714,0.05041746,143.03,143.02,5.5957]
[1740813706317,1.93301746,143.03,143.02,5.5957]
[1740813708114,11.02851746,143.03,142.96,223.88]
[1740813708314,2.19051746,143.03,142.96,223.88]
[1740813709020,7.5204,143.02,142.96,223.88]
[1740813710120,7.5204,143.02,142.99,5.5967]
[1740813710314,1.9247,143.02,142.96,223.88]
[1740813710514,1.9247,143.02,143.01,5.5961]
[1740813711415,1.9247,143.02,142.98,5.5971]
[1740813712523,7.5206,143.02,142.98,5.5971]
[1740813713225,7.5206,143.02,142.96,223.88]
[1740813713417,1.9247,143.02,142.99,5.5967]